bitfinex-derivatives/quotes_ETHF0:USTF0_20241105
["timestamp","ask_amount","ask_price","bid_price","bid_amount"]
[1730775811428,3.2078,2409.6,2409.5,1.3215]
[1730775811639,3.2078,2409.6,2409.5,1.73679]
[1730775811832,0.097,2409.9,2409.6,0.41527]
[1730775812029,0.41522,2409.9,2409.7,1.4951612]
[1730775812231,1.71001,2410.0,2409.7,1.4951612]
[1730775812432,1.71001,2410.0,2409.8,0.6562]
[1730775813532,1.2948,2410.0,2409.8,0.6562]
[1730775813747,3.2078,2410.1,2409.9,2.5889712]
[1730775813929,3.62299,2410.1,2409.9,2.1737612]
[1730775814236,3.2078,2410.1,2409.9,2.1737612]
[1730775815626,1.69668,2410.2,2409.9,2.1737612]
[1730775815832,3.2078,2410.1,2409.9,2.1737612]
[1730775816232,0.41519,2410.1,2409.9,2.1737612]
[1730775816429,3.2078,2410.1,2409.9,2.1737612]
[1730775816739,2.1470612,2410.4,2410.2,0.41516]
[1730775816740,3.2078,2410.4,2410.2,0.41516]
[1730775816933,3.8332,2410.4,2410.3,0.6319]
[1730775817139,3.8332,2410.4,2410.3,1.2556]
[1730775817330,3.2078,2410.4,2410.3,1.67075]
[1730775817538,3.2078,2410.4,2410.3,3.8231112]
[1730775817739,3.2078,2410.4,2410.3,8.19656777]
[1730775818433,3.2078,2410.4,2410.3,3.63261777]
[1730775818632,3.2078,2410.4,2410.3,2.13745657]
[1730775818857,1.04051,2410.6,2410.3,2.13745657]
[1730775819036,1.04051,2410.6,2410.3,1.9128]
[1730775819037,4.24831,2410.6,2410.3,1.9128]
[1730775819242,0.41512,2410.5,2410.3,1.9128]
[1730775819928,3.8332,2410.6,2410.3,1.9128]
[1730775820333,0.41513,2410.5,2410.3,1.9128]
[1730775821332,4.24831,2410.6,2410.3,1.9128]
[1730775821934,3.8332,2410.6,2410.3,1.9128]
[1730775822233,0.41512,2410.5,2410.3,1.9128]
[1730775822637,4.24831,2410.6,2410.3,1.9128]
[1730775822841,3.8332,2410.6,2410.3,1.9128]
[1730775823042,0.41512,2410.5,2410.3,1.9128]
[1730775823628,3.8332,2410.6,2410.3,1.9128]
[1730775823835,4.24831,2410.6,2410.3,2.32794]
[1730775824430,3.8332,2410.6,2410.3,1.9128]
[1730775824735,4.24832,2410.6,2410.3,1.2556]
[1730775824945,0.41512,2410.5,2410.3,1.2556]
[1730775825323,4.24831,2410.6,2410.3,1.67074]
[1730775825821,4.24831,2410.6,2410.3,1.2556]
[1730775826123,0.41512,2410.5,2410.3,1.2556]
[1730775826319,4.24831,2410.6,2410.3,1.2556]
[1730775826525,3.8332,2410.6,2410.4,0.41513]
[1730775827105,0.6254,2410.6,2410.5,0.41512]
[1730775827313,0.6254,2410.6,2410.5,1.05672]
[1730775827712,3.2078,2411.0,2410.8,0.41506]
[1730775827914,0.112,2411.3,2411.0,0.41502]
[1730775827915,3.8504,2411.3,2411.0,0.41502]
[1730775828214,3.8504,2411.3,2411.0,1.08112]
[1730775829819,4.26538,2411.3,2411.0,0.6661]
[1730775830211,3.8504,2411.3,2411.0,0.6661]
[1730775830405,3.8504,2411.3,2411.0,1.08112]
[1730775830610,4.26539,2411.3,2411.0,0.6661]
[1730775830814,3.8504,2411.3,2410.9,0.6552]
[1730775831017,0.415,2411.2,2410.9,0.6552]
[1730775831208,3.8504,2411.3,2410.9,0.6552]
[1730775831209,0.41501,2411.1,2410.9,0.6552]
[1730775831409,1.07821,2411.1,2410.9,0.6552]
[1730775831605,0.6632,2411.1,2410.9,0.6552]
[1730775832213,3.871,2411.1,2410.9,0.6552]
[1730775834208,3.871,2411.1,2410.6,1.4951612]
[1730775834414,0.41512,2410.5,2410.2,0.097]
[1730775834612,0.41512,2410.5,2410.3,0.6585]
[1730775834613,3.2078,2410.5,2410.3,0.6585]
[1730775834816,41.4575,2410.4,2410.3,0.6585]
[1730775835006,41.87263,2410.4,2410.1,1.3055]
[1730775835212,0.41516,2410.3,2410.1,1.3055]
[1730775835416,3.2078,2410.2,2409.9,1.9103712]
[1730775837322,3.2078,2410.2,2409.9,0.41521]
[1730775838221,3.2078,2410.2,2409.8,0.6585]
[1730775838418,3.2078,2410.2,2409.9,0.41521]
[1730775838918,3.62297,2410.2,2409.9,0.41521]
[1730775840521,3.2078,2410.2,2409.8,0.6585]
[1730775840821,3.62297,2410.2,2409.9,0.41521]
[1730775841024,0.41517,2410.2,2409.9,0.41521]
[1730775841622,3.62297,2410.2,2409.9,0.41521]
[1730775841816,0.41517,2410.2,2409.9,0.41521]
[1730775842009,3.62297,2410.2,2409.9,0.41521]
[1730775842917,0.41517,2410.2,2409.9,0.41521]
[1730775843118,3.2078,2410.2,2409.8,0.6585]
[1730775843517,1.06029,2410.1,2409.8,1.07373]
[1730775843933,0.6529,2410.0,2409.8,1.07373]
[1730775844126,0.6529,2410.0,2409.8,0.6585]
[1730775844329,0.6529,2410.0,2409.9,0.41522]
[1730775848726,0.51213,2410.4,2410.2,0.41516]
[1730775848922,0.41513,2410.4,2410.3,0.6416]
[1730775849117,3.2078,2410.5,2410.3,1.2843]
[1730775849421,3.62293,2410.5,2410.3,1.69945]
[1730775849628,3.2078,2410.5,2410.3,1.69945]
[1730775850026,3.62292,2410.5,2410.3,1.69945]
[1730775850622,3.2078,2410.5,2410.3,1.69945]
[1730775851225,3.2078,2410.5,2410.4,0.41513]
[1730775852329,3.8919,2410.6,2410.5,0.41512]
[1730775852925,0.6841,2410.6,2410.5,0.41512]
[1730775853124,3.8919,2410.6,2410.3,1.2843]
[1730775853329,0.41514,2410.4,2410.1,0.41518]
[1730775853525,3.8919,2410.6,2410.0,0.41519]
[1730775853526,4.31506,2410.3,2410.0,0.41519]
[1730775853733,3.8999,2410.3,2409.8,0.6511]
[1730775853935,4.31505,2410.3,2410.1,0.41518]
[1730775854636,0.41517,2410.2,2410.0,0.41519]
[1730775854837,0.41517,2410.2,2409.8,0.6511]
[1730775854838,0.6278,2410.1,2409.9,0.4152]
[1730775855132,0.6278,2410.1,2410.0,0.4152]
[1730775857237,0.6278,2410.1,2410.0,0.63982477]
[1730775858446,0.6278,2410.1,2410.0,0.22462477]
[1730775858638,0.6278,2410.1,2410.0,0.63982477]
[1730775860435,0.6278,2410.1,2409.8,0.41523]
[1730775860636,3.62301,2410.0,2409.9,0.22471816]
[1730775860836,3.2078,2410.0,2409.7,1.91045322]
[1730775861042,3.623,2410.0,2409.8,0.82570973]
[1730775861338,3.623,2410.0,2409.7,1.49521322]
[1730775861643,3.623,2410.0,2409.8,1.24092818]
[1730775861835,3.623,2410.0,2409.9,0.22473125]
[1730775862139,3.623,2410.0,2409.8,0.41523]
[1730775862443,3.2078,2410.0,2409.9,0.22472267]
[1730775864445,3.2078,2410.0,2409.9,0.63994267]
[1730775864938,3.2078,2410.3,2409.9,4.37432267]
[1730775865149,3.2078,2410.3,2410.2,0.41517]
[1730775868441,0.097,2410.6,2410.4,0.41513]
[1730775868442,3.3048,2410.6,2410.4,0.41513]
[1730775868747,3.2078,2410.6,2410.3,1.68954]
[1730775868937,3.6229,2410.6,2410.3,1.68954]
[1730775870544,0.4151,2410.6,2410.3,1.68954]
[1730775870741,3.6229,2410.6,2410.3,1.68954]
[1730775871245,0.4151,2410.6,2410.3,1.68954]
[1730775871545,3.6229,2410.6,2410.3,1.68954]
[1730775871746,0.41512,2410.5,2410.2,0.41516]
[1730775872044,3.62291,2410.6,2410.3,0.41515]
[1730775872238,40.8,2410.5,2410.3,0.41515]
[1730775872443,0.6888,2410.4,2410.0,3.2078]
[1730775872637,0.6524,2410.3,2410.1,0.82553923]
[1730775872839,0.6524,2410.3,2410.2,0.22466009]
[1730775873746,0.6524,2410.3,2410.2,0.63982009]
[1730775874642,0.6524,2410.3,2410.2,1.24080824]
[1730775875956,0.6524,2410.3,2410.2,0.82564824]
[1730775876141,0.6524,2410.3,2410.2,0.8259987]
[1730775876336,1.06755,2410.3,2410.2,0.22466009]
[1730775877039,0.41519,2410.1,2409.8,0.41523]
[1730775877241,1.2953,2410.0,2409.9,1.24151513]
[1730775877438,0.6318,2410.0,2409.9,2.20394253]
[1730775882745,1.06756,2410.3,2409.9,1.78872253]
[1730775882746,3.2078,2410.2,2409.9,1.78872253]
[1730775883053,3.2078,2410.2,2410.1,0.41517]
[1730775883254,3.2078,2410.2,2410.1,1.24146513]
[1730775883851,3.2078,2410.2,2410.1,2.20481557]
[1730775884156,3.2078,2410.2,2410.1,1.24146513]
[1730775884549,3.2078,2410.2,2410.1,2.20481142]
[1730775884946,3.2078,2410.2,2410.1,1.24146513]
[1730775885152,3.2078,2410.2,2410.1,2.20480196]
[1730775885351,3.2078,2410.2,2410.1,1.24146513]
[1730775886049,3.2078,2410.2,2410.1,2.20480124]
[1730775886653,1.3311,2410.3,2410.1,2.20480124]
[1730775887147,1.3311,2410.3,2410.2,0.22491085]
[1730775887848,1.3311,2410.3,2410.1,0.41517]
[1730775889456,1.3311,2410.3,2410.2,0.60208278]
[1730775890357,1.3311,2410.3,2410.2,0.82719248]
[1730775891057,4.28644,2410.4,2410.3,0.41515]
[1730775891058,3.2078,2410.4,2410.3,0.41515]
[1730775891248,3.2078,2410.4,2410.3,1.03555]
[1730775892459,3.2078,2410.4,2410.3,2.8258448]
[1730775893451,1.3104,2410.7,2410.3,2.8258448]
[1730775893651,3.3048,2410.9,2410.3,2.8258448]
[1730775893652,3.3048,2410.9,2410.8,0.41506]
[1730775893854,0.6457,2411.0,2410.8,0.41506]
[1730775894059,0.6457,2411.0,2410.6,1.49527033]
[1730775894255,0.6457,2411.0,2410.9,0.41505]
[1730775894655,0.6457,2411.0,2410.9,1.09385]
[1730775897257,0.6457,2411.0,2410.9,1.31866864]
[1730775897864,0.6457,2411.0,2410.9,0.90361864]
[1730775898163,0.6457,2411.0,2410.9,1.31866864]
[1730775898364,0.6457,2411.0,2410.9,1.09385]
[1730775898763,0.6457,2411.0,2410.9,0.6788]
[1730775898964,1.06074,2411.0,2410.6,0.41509]
[1730775899465,1.06074,2411.0,2410.7,0.82558188]
[1730775899667,1.06074,2411.0,2410.6,0.41509]
[1730775899965,1.06074,2411.0,2410.7,0.82554249]
[1730775900161,1.06074,2411.0,2410.6,0.41509]
[1730775900360,1.06074,2411.0,2410.7,0.22466993]
[1730775900568,0.6457,2411.0,2410.5,3.8549]
[1730775900768,1.06074,2411.0,2410.6,1.24059145]
[1730775900976,40.8,2410.9,2410.7,0.22465264]
[1730775901270,40.8,2410.9,2410.6,0.41509]
[1730775901455,0.6635,2410.8,2410.6,0.41509]
[1730775901660,0.6647,2410.7,2410.6,0.41509]
[1730775901856,0.6647,2410.7,2410.6,1.24047495]
[1730775902470,0.6647,2410.7,2410.6,1.24041571]
[1730775902670,0.6647,2410.7,2410.6,0.63969553]
[1730775902862,0.6647,2410.7,2410.6,1.24041652]
[1730775903065,0.6647,2410.7,2410.6,0.82532652]
[1730775903263,0.6647,2410.7,2410.6,0.22460553]
[1730775903763,0.6647,2410.7,2410.6,0.22454679]
[1730775903964,0.6647,2410.7,2410.6,0.63964679]
[1730775904667,0.6647,2410.7,2410.6,0.4151]
[1730775904874,0.6647,2410.7,2410.6,0.63962775]
[1730775906975,0.6647,2410.7,2410.6,1.2401828]
[1730775908068,0.6647,2410.7,2410.6,0.63962775]
[1730775910770,0.6457,2411.0,2410.9,0.41505]
[1730775913376,0.62,2411.1,2411.0,0.41503]
[1730775913669,0.097,2411.5,2411.4,0.41496]
[1730775913872,4.5159,2411.6,2411.5,0.41494]
[1730775915268,1.3081,2411.6,2411.5,0.41494]
[1730775917976,3.2078,2411.8,2411.4,3.23865465]
[1730775918275,3.2078,2411.8,2411.7,0.41491]
[1730775918677,1.3288,2412.0,2411.9,0.41488]
[1730775918873,3.2078,2412.4,2412.2,0.41482]
[1730775919075,4.4797,2412.4,2412.1,0.41484]
[1730775919279,4.4797,2412.4,2412.1,0.41483]
[1730775919983,4.4797,2412.4,2411.9,0.6328]
[1730775919984,4.89449,2412.4,2412.0,0.41485]
[1730775920182,3.2078,2412.1,2412.0,0.41485]
[1730775920787,3.2078,2412.1,2411.9,0.6328]
[1730775920788,4.4797,2412.4,2411.9,0.6328]
[1730775921082,4.89449,2412.4,2412.0,0.41485]
[1730775921875,3.2078,2412.1,2411.4,6.54345465]
[1730775922069,3.2078,2412.1,2411.5,0.6821]
[1730775922070,0.6648,2412.0,2411.5,0.6821]
[1730775922269,0.6648,2412.0,2411.9,0.41488]
[1730775922683,0.6648,2412.0,2411.8,0.41488]
[1730775923486,0.6866,2411.9,2411.8,0.41488]
[1730775924077,0.6866,2411.9,2411.5,0.6821]
[1730775924278,0.6866,2411.9,2411.7,0.4149]
[1730775924585,0.6866,2411.9,2411.8,0.41489]
[1730775924983,4.833,2411.9,2411.5,0.6821]
[1730775925179,0.6866,2411.9,2411.7,0.4149]
[1730775925376,0.6866,2411.9,2411.8,0.41489]
[1730775925576,0.6866,2411.9,2411.7,0.4149]
[1730775925781,3.2078,2411.8,2411.5,0.6821]
[1730775925995,3.2078,2411.8,2411.6,0.41492]
[1730775926282,3.2078,2411.8,2411.7,0.41491]
[1730775926789,3.2078,2411.8,2411.5,0.6821]
[1730775926987,3.2078,2411.8,2411.7,0.41491]
[1730775928484,3.2078,2411.8,2411.6,0.41492]
[1730775928885,3.2078,2411.8,2411.4,0.6341]
[1730775929088,3.2078,2411.8,2411.6,0.41491]
[1730775929891,3.2078,2411.8,2411.4,0.6341]
[1730775930089,3.2078,2411.8,2411.6,0.41493]
[1730775932091,3.2078,2411.8,2411.5,0.41494]
[1730775934094,3.6227,2411.8,2411.5,0.41494]
[1730775935096,3.2078,2411.8,2411.6,0.41492]
[1730775935902,3.2078,2411.8,2411.5,0.41493]
[1730775936396,3.2078,2411.7,2411.5,0.41493]
[1730775936597,3.2078,2411.7,2411.4,0.6341]
[1730775936598,3.2078,2411.7,2411.6,0.41493]
[1730775936991,3.2078,2411.7,2411.5,0.41493]
[1730775937398,3.2078,2411.7,2411.4,2.12844295]
[1730775937593,3.2078,2411.7,2411.6,0.41493]
[1730775937788,3.2078,2411.7,2411.4,2.12844295]
[1730775937988,3.2078,2411.7,2411.5,0.41493]
[1730775939187,3.2078,2411.7,2411.4,2.12844295]
[1730775939392,3.2078,2411.7,2411.6,0.41493]
[1730775942194,3.2078,2411.8,2411.6,0.41493]
[1730775943093,3.2078,2411.8,2411.4,2.12844295]
[1730775943298,3.2078,2411.8,2411.5,0.41493]
[1730775943695,0.41491,2411.7,2411.4,2.54339295]
[1730775944704,3.2078,2411.8,2411.5,0.41493]
[1730775945004,3.2078,2411.8,2411.4,2.12844295]
[1730775945205,3.2078,2411.8,2411.6,0.41492]
[1730775945500,0.097,2412.2,2412.1,0.41484]
[1730775945804,0.209,2412.7,2412.1,1.49434295]
[1730775945805,0.6427,2412.5,2412.1,1.49434295]
[1730775946006,0.6427,2412.5,2412.3,0.41481]
[1730775946503,0.6427,2412.5,2412.4,0.41479]
[1730775950007,0.6427,2412.5,2412.3,0.4148]
[1730775951196,0.6427,2412.5,2412.2,1.9956]
[1730775951508,0.6427,2412.5,2412.3,0.41481]
[1730775953509,40.8,2412.4,2412.3,0.41481]
[1730775954208,40.8,2412.4,2412.2,0.6816]
[1730775954411,0.6681,2412.3,2412.1,0.41483]
[1730775955110,0.6681,2412.3,2411.9,8.4337794]
[1730775955315,0.6681,2412.3,2412.1,0.41484]
[1730775956514,4.29072,2412.3,2412.0,0.41486]
[1730775956711,4.92872,2412.3,2412.0,0.41486]
[1730775957417,3.2078,2412.2,2412.0,0.41486]
[1730775957619,3.2078,2412.2,2412.1,0.41484]
[1730775961929,3.2078,2412.2,2411.9,1.3561]
[1730775962132,3.2078,2412.2,2412.1,0.41484]
[1730775962433,3.2078,2412.2,2411.9,1.3561]
[1730775962434,3.2078,2412.2,2412.0,0.41484]
[1730775962619,3.2078,2412.2,2412.1,0.41484]
[1730775967219,3.2078,2412.2,2412.1,0.63900483]
[1730775967622,3.2078,2412.2,2412.1,1.27750483]
[1730775969319,3.2078,2412.2,2412.1,2.77133247]
[1730775969820,1.2736,2412.5,2412.4,0.41479]
[1730775970026,1.2736,2412.5,2412.4,1.90861764]
[1730775971117,1.2736,2412.5,2412.4,0.41479]
[1730775971926,1.2736,2412.5,2412.3,1.90862764]
[1730775972327,1.2736,2412.5,2412.4,0.41479]
[1730775972526,1.68837,2412.5,2412.3,1.90862764]
[1730775972726,0.6495,2412.4,2412.3,1.90862764]
[1730775975869,0.6495,2412.4,2412.1,1.90865764]
[1730775975870,0.41481,2412.3,2412.1,1.90865764]
[1730775976457,1.0643,2412.4,2412.1,1.90865764]
[1730775976662,0.6495,2412.4,2412.1,1.90865764]
[1730775976856,0.6495,2412.4,2412.2,0.41482]
[1730775977567,3.2078,2412.3,2412.2,0.41482]
[1730775977991,3.2078,2412.3,2412.0,1.90867764]
[1730775978159,3.2078,2412.3,2412.1,0.41482]
[1730775978464,3.2078,2412.3,2412.2,0.41482]
[1730775979577,0.6495,2412.4,2412.2,0.41482]
[1730775980067,3.2078,2412.3,2412.2,0.41482]
[1730775981170,3.2078,2412.3,2412.1,0.41483]
[1730775981358,3.2078,2412.3,2412.0,1.49382764]
[1730775981565,3.2078,2412.3,2412.1,0.63907569]
[1730775981767,3.2078,2412.3,2412.2,0.41482]
[1730775983759,1.2736,2412.5,2412.4,0.41479]
[1730775983968,1.2736,2412.5,2412.4,1.90861764]
[1730775984155,1.2736,2412.5,2412.4,2.1328691]
[1730775985046,0.6309,2412.5,2412.4,2.1328691]
[1730775985247,3.2078,2412.6,2412.5,0.41477]
[1730775985643,3.2078,2412.6,2412.5,1.04297]
[1730775986452,3.2078,2412.6,2412.5,1.2672928]
[1730775986947,3.2078,2412.6,2412.5,0.6282]
[1730775987142,3.2078,2412.6,2412.5,0.85251558]
[1730775987446,3.2078,2412.6,2412.5,1.26728558]
[1730775989047,3.2078,2412.6,2412.5,0.22431558]
[1730775989853,3.2078,2412.6,2412.4,1.90860764]
[1730775990147,3.8908,2412.7,2412.4,1.90860764]
[1730775990447,40.8,2412.6,2412.5,0.82507989]
[1730775990949,3.8908,2412.7,2412.5,1.23984989]
[1730775991148,3.8908,2412.7,2412.6,0.82526596]
[1730775992353,0.683,2412.7,2412.6,0.82526596]
[1730775993051,3.8908,2412.7,2412.6,0.82526596]
[1730775993452,3.8908,2412.7,2412.6,1.24002596]
[1730775993652,3.8908,2412.7,2412.6,0.63929659]
[1730775993854,3.8908,2412.7,2412.6,1.23980217]
[1730775994446,3.8908,2412.7,2412.6,0.82504217]
[1730775995247,0.683,2412.7,2412.6,0.82504217]
[1730775995750,3.8908,2412.7,2412.6,0.82504217]
[1730775995950,3.8908,2412.7,2412.6,1.23980217]
[1730775996250,3.8908,2412.7,2412.6,0.82504217]
[1730775996647,3.8908,2412.7,2412.6,0.22453659]
[1730775996850,3.8908,2412.7,2412.6,0.82491143]
[1730775997156,3.8908,2412.7,2412.6,0.22453659]
[1730775997357,3.8908,2412.7,2412.5,1.06287]
[1730775997559,3.8908,2412.7,2412.6,0.22446825]
[1730776000862,0.683,2412.7,2412.6,0.22446825]
[1730776001065,3.8908,2412.7,2412.6,0.22446825]
[1730776001264,3.8908,2412.7,2412.5,1.06287]
[1730776001558,3.8908,2412.7,2412.6,0.22443021]
[1730776001860,9.94416764,2412.7,2412.6,0.22443021]
[1730776002364,8.0356,2412.7,2412.5,0.41477]
[1730776002662,4.30554,2412.7,2412.4,0.41478]
[1730776002856,0.41476,2412.6,2412.5,0.82460628]
[1730776003262,4.55956,2412.6,2412.5,0.82460628]
[1730776004262,7.76736,2412.6,2412.5,0.82460628]
[1730776004854,7.76736,2412.6,2412.3,2.55132764]
[1730776005055,3.62256,2412.6,2412.5,0.60022817]
[1730776005354,3.62256,2412.6,2412.5,0.8246433]
[1730776005559,7.3526,2412.6,2412.5,0.8246433]
[1730776006161,3.2078,2412.6,2412.5,0.8246433]
[1730776006361,1.09775,2412.7,2412.5,0.8246433]
[1730776006562,1.09775,2412.7,2412.6,0.22441513]
[1730776006766,4.30555,2412.7,2412.6,0.22441513]
[1730776006962,8.45035,2412.7,2412.6,0.22441513]
[1730776007665,5.24255,2412.7,2412.6,0.22441513]
[1730776007857,8.45035,2412.7,2412.6,0.22441513]
[1730776008363,5.24255,2412.7,2412.4,0.41478]
[1730776008663,5.24255,2412.7,2412.5,0.82466311]
[1730776008664,3.2078,2412.6,2412.5,0.82466311]
[1730776009665,1.09775,2412.7,2412.5,0.82466311]
[1730776009868,1.09775,2412.7,2412.6,0.22442248]
[1730776010070,4.30555,2412.7,2412.6,0.22442248]
[1730776010367,4.30554,2412.7,2412.6,0.22442248]
[1730776010856,1.09774,2412.7,2412.6,0.22442248]
[1730776011258,4.30554,2412.7,2412.6,0.22442248]
[1730776011461,3.8908,2412.7,2412.6,0.22442248]
[1730776011660,4.30554,2412.7,2412.6,0.22442248]
[1730776012075,9.52942764,2412.7,2412.0,2.13932277]
[1730776012366,3.2078,2412.4,2412.3,0.41479]
[1730776012571,3.2078,2412.4,2412.3,2.20840235]
[1730776013269,3.2078,2412.4,2412.3,2.20845351]
[1730776013573,3.2078,2412.4,2412.3,2.20855835]
[1730776013872,3.2078,2412.4,2412.3,2.20857574]
[1730776014970,3.2078,2412.5,2412.3,2.20857574]
[1730776015172,3.2078,2412.5,2412.4,0.82802847]
[1730776015875,3.2078,2412.5,2412.4,0.82801661]
[1730776016068,0.41476,2412.6,2412.4,0.82801661]
[1730776016268,3.2078,2412.5,2412.3,0.4148]
[1730776016568,3.2078,2412.5,2412.4,0.82800287]
[1730776016869,44.0078,2412.5,2412.4,0.82800287]
[1730776017577,3.2078,2412.5,2412.4,0.82800287]
[1730776018802,3.62257,2412.5,2412.4,0.82800287]
[1730776019000,3.2078,2412.5,2412.4,0.82800287]
[1730776020795,3.2078,2412.5,2412.3,0.41481]
[1730776020989,3.2078,2412.5,2412.4,0.82805745]
[1730776021385,0.41476,2412.6,2412.4,0.82805745]
[1730776021584,0.41476,2412.6,2412.5,0.82805745]
[1730776021788,3.62256,2412.6,2412.5,0.82805745]
[1730776022081,7.76736,2412.6,2412.5,0.82807951]
[1730776022484,7.76736,2412.6,2412.5,0.82809224]
[1730776023580,7.76736,2412.6,2412.5,0.82811098]
[1730776024179,9.26118764,2412.6,2412.5,0.82811098]
[1730776024487,9.26118764,2412.6,2412.5,0.8282295]
[1730776027493,9.92908764,2412.6,2412.5,0.8282295]
[1730776028687,9.92908764,2412.6,2412.5,1.2429995]
[1730776028688,3.8757,2412.6,2412.5,1.2429995]
[1730776029288,3.2078,2412.6,2412.5,2.20944195]
[1730776029793,3.2078,2412.6,2412.5,2.46907195]
[1730776030284,3.2078,2412.6,2412.5,2.88384195]
[1730776033190,3.2078,2412.6,2412.5,2.46907195]
[1730776033491,3.2078,2412.6,2412.5,2.4692819]
[1730776035385,3.2078,2412.6,2412.5,2.47825169]
[1730776036387,3.2078,2412.6,2412.5,2.47825026]
[1730776036598,4.25204,2412.7,2412.5,2.47825026]
[1730776036795,4.25204,2412.7,2412.6,0.83199936]
[1730776037197,1.04424,2412.7,2412.6,0.83199936]
[1730776037498,4.25204,2412.7,2412.6,0.83199936]
[1730776037794,1.04424,2412.7,2412.6,0.83199936]
[1730776038098,4.25204,2412.7,2412.6,0.83199936]
[1730776039594,9.89066764,2412.7,2412.6,0.83199936]
[1730776039793,1.0369,2412.6,2412.0,1.3452]
[1730776040092,14.35244441,2412.7,2412.1,2.79291714]
[1730776040093,3.2078,2412.3,2412.1,2.79291714]
[1730776040297,3.2078,2412.3,2412.2,1.57860534]
[1730776040298,3.62261,2412.3,2412.2,1.57860534]
[1730776040488,4.30631,2412.3,2412.2,1.57860534]
[1730776042408,4.30631,2412.3,2412.2,0.6071559]
[1730776042938,1.09851,2412.3,2412.2,0.6071559]
[1730776043117,4.30631,2412.3,2412.2,0.6071559]
[1730776043326,1.09851,2412.3,2412.2,0.6071559]
[1730776043522,4.30631,2412.3,2412.2,0.6071559]
[1730776043717,4.30631,2412.3,2412.2,0.60678924]
[1730776043916,7.56196324,2412.6,2412.5,0.41477]
[1730776044116,3.2078,2412.6,2412.5,2.51526098]
[1730776044526,3.2078,2412.6,2412.5,3.48573741]
[1730776046427,0.41473,2412.8,2412.6,0.41475]
[1730776046628,0.41473,2412.8,2412.7,1.26746334]
[1730776046830,3.62253,2412.8,2412.7,1.26746334]
[1730776049526,0.41473,2412.8,2412.7,1.26746334]
[1730776049824,3.62253,2412.8,2412.7,1.26746334]
[1730776050304,0.41473,2412.8,2412.7,1.26746334]
[1730776050512,1.07822,2412.9,2412.7,1.26746334]
[1730776050702,3.2078,2412.8,2412.7,0.6608]
[1730776050899,3.62252,2412.8,2412.7,1.27052748]
[1730776051803,3.62252,2412.8,2412.7,1.49449713]
[1730776052602,3.2078,2412.8,2412.7,1.49449713]
[1730776053692,1.07821,2412.9,2412.7,1.49449713]
[1730776054004,3.2078,2412.8,2412.7,0.6608]
[1730776054205,3.2078,2412.8,2412.7,1.27057312]
[1730776054501,1.07821,2412.9,2412.7,1.49457712]
[1730776054707,1.07821,2412.9,2412.7,0.6608]
[1730776054894,0.6635,2412.9,2412.7,0.6608]
[1730776055102,3.2078,2412.8,2412.7,0.6608]
[1730776055302,3.2078,2412.8,2412.7,1.49448471]
[1730776055497,1.07821,2412.9,2412.7,1.49447675]
[1730776055698,1.07821,2412.9,2412.7,0.6608]
[1730776055903,3.2078,2412.8,2412.7,0.6608]
[1730776056108,3.2078,2412.8,2412.7,1.49448457]
[1730776056708,3.62252,2412.8,2412.7,0.83368457]
[1730776056914,4.27342,2412.8,2412.7,0.83368457]
[1730776057410,4.95302,2412.8,2412.7,0.83368457]
[1730776057905,1.74522,2412.8,2412.7,0.83362051]
[1730776058103,4.95302,2412.8,2412.7,0.83362051]
[1730776058705,6.44684764,2412.8,2412.7,0.83362051]
[1730776061410,6.03212764,2412.8,2412.7,0.83708139]
[1730776061710,4.95302,2412.8,2412.7,0.83708139]
[1730776065126,1.74522,2412.8,2412.7,0.8370742]
[1730776065525,4.95302,2412.8,2412.7,0.83708697]
[1730776067326,4.5383,2412.8,2412.7,0.83708697]
[1730776067717,4.5383,2412.8,2412.7,0.8373809]
[1730776067718,4.95302,2412.8,2412.7,0.8373809]
[1730776068526,4.5383,2412.8,2412.7,0.8373809]
[1730776068725,4.95302,2412.8,2412.5,1.08866]
[1730776069024,4.5383,2412.8,2412.6,0.83802341]
[1730776069229,4.95303,2412.8,2412.7,0.83802341]
[1730776069631,4.5383,2412.8,2412.7,0.83802341]
[1730776071327,1.3305,2412.8,2412.7,0.83802341]
[1730776071531,4.5383,2412.8,2412.7,0.83802341]
[1730776072235,4.95302,2412.8,2412.7,0.83802341]
[1730776072535,7.56196324,2413.1,2412.7,7.45872255]
[1730776072736,7.56196324,2413.1,2412.9,0.4147]
[1730776073531,7.56196324,2413.1,2412.8,3.92153764]
[1730776073735,4.35416324,2413.1,2413.0,1.90851764]
[1730776074035,4.35416324,2413.1,2413.0,3.72814699]
[1730776074229,4.35416324,2413.1,2413.0,9.09903553]
[1730776074430,4.35416324,2413.1,2413.0,7.87214699]
[1730776075635,3.2078,2413.4,2413.3,0.41463]
[1730776075831,3.2078,2413.4,2412.8,4.54359764]
[1730776075832,3.2078,2413.4,2413.2,0.41464]
[1730776076031,3.2078,2413.4,2413.3,1.2884]
[1730776076432,3.62242,2413.4,2413.3,0.6459]
[1730776076739,3.2078,2413.4,2413.1,2.13262764]
[1730776076930,3.62243,2413.4,2413.2,0.83657625]
[1730776077132,3.62243,2413.4,2413.1,2.54728764]
[1730776077436,3.2078,2413.4,2413.1,2.54728764]
[1730776077738,3.62242,2413.4,2413.1,2.54728764]
[1730776078731,0.41462,2413.4,2413.1,2.54728764]
[1730776078931,3.62242,2413.4,2413.1,2.54728764]
[1730776079442,3.2078,2413.4,2413.1,2.54728764]
[1730776080828,3.2078,2413.4,2413.2,0.41464]
[1730776081028,3.2078,2413.4,2413.3,0.6452]
[1730776081230,3.2078,2413.4,2413.3,1.2724]
[1730776081430,3.2078,2413.4,2413.3,7.32485764]
[1730776081636,3.2078,2413.4,2413.3,2.76622764]
[1730776081835,3.2078,2413.4,2413.3,7.32485764]
[1730776082139,3.2078,2413.4,2413.3,5.83103]
[1730776082532,3.2078,2413.4,2413.3,1.68703]